bitfinex/quotes_ETHUSD_20250730
["timestamp","ask_amount","ask_price","bid_price","bid_amount"]
[1753919564996,9.29747157,3814.6,3814.5,0.001]
[1753919565176,9.84747157,3814.6,3814.5,0.001]
[1753919566074,6.29356086,3814.6,3814.5,0.001]
[1753919566313,10.30156086,3814.6,3814.5,0.001]
[1753919566623,4.89709867,3814.6,3814.5,0.001]
[1753919566827,4.69385167,3814.6,3814.5,0.001]
[1753919567115,4.69385167,3814.6,3814.0,0.8078]
[1753919567116,1.54260517,3814.5,3812.5,0.001]
[1753919567277,1.3101,3812.8,3812.5,0.001]
[1753919567483,1.93711221,3812.8,3812.5,0.001]
[1753919567677,6.46431221,3812.8,3812.5,0.001]
[1753919567904,6.70983119,3812.8,3812.5,0.001]
[1753919568080,7.15093119,3812.8,3812.5,0.001]
[1753919568480,7.39626145,3812.8,3812.5,0.001]
[1753919568677,1.80094924,3812.8,3812.5,0.001]
[1753919568888,5.29294924,3812.8,3812.5,0.001]
[1753919569391,5.39808724,3812.8,3812.5,0.001]
[1753919570315,5.88228724,3812.8,3812.5,0.001]
[1753919570913,6.87338724,3812.8,3812.5,0.001]
[1753919571212,8.05672817,3812.8,3812.5,0.001]
[1753919571580,11.05672817,3812.8,3812.5,0.001]
[1753919572700,11.05608095,3812.8,3812.5,0.001]
[1753919573994,18.14608095,3812.8,3812.5,0.001]
[1753919575412,18.14569099,3812.8,3812.5,0.001]
[1753919576481,18.14474231,3812.8,3812.5,0.001]
[1753919576896,1.3643,3812.6,3812.5,0.001]
[1753919577095,16.47806745,3812.6,3812.5,0.001]
[1753919577343,2.62306749,3812.4,3812.1,0.04]
[1753919577623,0.55,3812.0,3811.6,0.001]
[1753919577780,9.32432205,3811.7,3811.6,0.001]
[1753919577985,13.9872479,3811.7,3811.6,0.001]
[1753919578255,17.53604922,3811.7,3811.6,0.001]
[1753919578584,17.53589445,3811.7,3811.6,0.001]
[1753919578898,20.10615906,3811.7,3811.6,0.001]
[1753919579298,13.43965774,3811.7,3811.6,0.001]
[1753919579504,24.57265774,3811.7,3811.6,0.001]
[1753919580194,15.56963569,3811.7,3811.6,0.001]
[1753919580393,19.61263569,3811.7,3811.6,0.001]
[1753919581030,15.56963569,3811.7,3811.6,0.001]
[1753919581329,19.61263569,3811.7,3811.6,0.001]
[1753919582002,19.71783569,3811.7,3811.6,0.001]
[1753919582811,119.71883569,3811.7,3811.6,0.001]
[1753919583406,114.74953569,3811.7,3811.6,0.001]
[1753919583614,18.24453569,3811.7,3811.6,0.001]
[1753919584024,14.19953569,3811.7,3811.6,0.001]
[1753919584309,11.19953569,3811.7,3811.6,0.001]
[1753919584507,10.81497108,3811.7,3811.6,0.001]
[1753919584709,14.86897108,3811.7,3811.6,0.871]
[1753919584935,7.81497108,3811.7,3811.6,0.001]
[1753919585144,4.78197108,3811.7,3811.6,0.871]
[1753919585551,0.72497108,3811.7,3811.6,0.871]
[1753919585772,0.48078158,3811.7,3811.6,1.6709]
[1753919586048,4.54593215,3811.7,3811.6,1.6709]
[1753919586223,0.24438158,3811.7,3811.6,1.6709]
[1753919586555,4.54619532,3811.7,3811.6,1.6709]
[1753919586924,4.3025889,3811.7,3811.6,1.6709]
[1753919587761,0.48725062,3811.7,3811.6,1.6709]
[1753919587914,4.3025889,3811.7,3811.6,1.6709]
[1753919588847,4.4337889,3811.7,3811.6,1.6709]
[1753919589343,4.43394191,3811.7,3811.6,1.6709]
[1753919589562,4.1902,3811.7,3811.6,1.6709]
[1753919589931,4.43393971,3811.7,3811.6,1.6709]
[1753919590130,4.1902,3811.7,3811.6,1.6709]
[1753919590570,4.4339658,3811.7,3811.6,1.6709]
[1753919591350,4.43400746,3811.7,3811.6,0.8009]
[1753919591667,4.43400746,3811.7,3811.6,1.6709]
[1753919591844,4.43400746,3811.7,3811.6,0.8009]
[1753919592231,4.4341123,3811.7,3811.6,1.6709]
[1753919594469,4.4341123,3811.7,3811.6,1.2293]
[1753919595338,4.4341123,3811.7,3811.6,1.6709]
[1753919597046,4.43483002,3811.7,3811.6,1.6709]
[1753919597249,4.67984239,3811.7,3811.6,1.6709]
[1753919597675,4.67084239,3811.7,3811.6,1.6709]
[1753919598744,4.67084239,3811.7,3811.6,0.8009]
[1753919599945,4.42583002,3811.7,3811.6,0.8009]
[1753919600147,4.67098752,3811.7,3811.6,0.8009]
[1753919600371,4.67098752,3811.7,3811.6,1.2351]
[1753919600549,0.62098752,3811.7,3811.6,1.2351]
[1753919600744,4.66798752,3811.7,3811.6,0.8009]
[1753919603682,0.62098752,3811.7,3811.6,0.8009]
[1753919603983,4.53478752,3811.7,3811.6,1.6767]
[1753919605596,4.53478752,3811.7,3811.6,1.2351]
[1753919605746,4.53478752,3811.7,3811.6,0.8009]
[1753919606883,0.48978752,3811.7,3811.6,0.8009]
[1753919607092,4.53378752,3811.7,3811.6,0.8009]
[1753919607987,4.28863002,3811.7,3811.6,0.8009]
[1753919611390,4.28863002,3811.7,3811.6,0.001]
[1753919611588,4.78773002,3811.7,3811.6,0.001]
[1753919611776,5.03321834,3811.7,3811.6,0.001]
[1753919612372,5.03333289,3811.7,3811.6,0.001]
[1753919612570,4.53423289,3811.7,3811.6,0.001]
[1753919613696,5.03333289,3811.7,3811.6,0.001]
[1753919614293,4.53423289,3811.7,3811.6,0.001]
[1753919617455,0.49023289,3811.7,3811.6,0.001]
[1753919617667,0.49023289,3811.7,3811.6,1.8173]
[1753919618370,0.49023289,3811.7,3811.6,9.40419404]
[1753919618371,0.24463002,3811.7,3811.6,9.40419404]
[1753919618577,0.002,3812.0,3811.9,3.38686367]
[1753919618761,0.002,3812.0,3811.9,0.7635]
[1753919618961,0.24809998,3812.0,3811.9,1.7705]
[1753919619369,0.002,3812.0,3811.9,1.7705]
[1753919619568,0.002,3812.0,3811.9,4.39386367]
[1753919619797,0.002,3812.0,3811.9,1.7705]
[1753919620189,0.002,3812.0,3811.9,4.39386367]
[1753919620765,0.002,3812.0,3811.9,1.7705]
[1753919621791,0.002,3812.0,3811.9,1.3289]
[1753919622578,0.002,3812.0,3811.9,0.8947]
[1753919622978,0.002,3812.0,3811.9,4.39386367]
[1753919624411,0.002,3812.0,3811.9,1.7705]
[1753919624765,0.002,3812.0,3811.9,3.51806367]
[1753919624966,0.002,3812.0,3811.9,4.39386367]
[1753919629290,0.002,3812.0,3811.9,1.7705]
[1753919629493,0.002,3812.0,3811.9,4.39386367]
[1753919630587,0.002,3812.0,3811.9,3.95226367]
[1753919631281,0.002,3812.0,3811.9,4.39386367]
[1753919633210,0.002,3812.0,3811.9,3.95226367]
[1753919633373,0.002,3812.0,3811.9,4.39386367]
[1753919633908,0.002,3812.0,3811.9,8.41786367]
[1753919634717,0.002,3812.0,3811.9,7.97626367]
[1753919635316,0.002,3812.0,3811.9,7.54206367]
[1753919635885,0.002,3812.0,3811.9,4.9187]
[1753919636727,0.002,3812.0,3811.9,7.54206367]
[1753919637231,0.002,3812.0,3811.9,4.9187]
[1753919637734,0.002,3812.0,3811.9,7.54206367]
[1753919639182,0.002,3812.0,3811.9,4.9187]
[1753919640727,0.002,3812.0,3811.9,12.50538756]
[1753919640885,0.002,3812.0,3811.9,13.39168756]
[1753919641085,0.002,3812.0,3811.9,4.9187]
[1753919641286,0.002,3812.0,3811.9,7.54206367]
[1753919643800,0.4979,3812.0,3811.9,7.54206367]
[1753919645429,0.002,3812.0,3811.9,7.54206367]
[1753919646526,0.002,3812.0,3811.9,4.1552]
[1753919646711,0.9361,3812.0,3811.9,4.1552]
[1753919647024,0.4979,3812.0,3811.9,6.77856367]
[1753919648492,0.4979,3812.0,3811.9,4.1552]
[1753919648803,0.4979,3812.0,3811.9,6.77856367]
[1753919649004,0.4979,3812.0,3811.9,4.1552]
[1753919649428,0.4979,3812.0,3811.9,6.77856367]
[1753919650436,0.9361,3812.0,3811.9,0.1312]
[1753919650595,1.10632,3812.0,3811.8,4.015]
[1753919650792,0.9341,3811.9,3811.8,4.015]
[1753919657109,0.9341,3811.9,3811.7,0.1312]
[1753919657312,0.893,3811.8,3811.7,0.1312]
[1753919658120,1.6438,3811.8,3811.7,0.1312]
[1753919658329,0.7508,3811.7,3811.6,0.001]
[1753919658522,1.6438,3811.7,3811.6,0.001]
[1753919658904,1.775,3811.7,3811.6,0.001]
[1753919661237,1.8399,3811.7,3811.6,0.001]
[1753919661421,2.040548,3811.7,3811.6,0.001]
[1753919663423,0.786248,3811.7,3811.6,0.001]
[1753919663621,0.002,3812.0,3811.6,0.001]
[1753919663821,0.70218974,3812.0,3811.6,0.1322]
[1753919664027,0.4544,3811.9,3811.6,0.1322]
[1753919664730,0.4544,3811.8,3811.6,0.1322]
[1753919665238,0.4544,3811.7,3811.6,0.1322]
[1753919666412,0.4530883,3811.7,3811.6,0.1322]
[1753919669646,0.893,3811.7,3811.6,0.1322]
[1753919670152,0.4544,3811.7,3811.6,0.1322]
[1753919670469,0.4544,3811.7,3811.6,0.001]
[1753919670756,1.0242,3811.7,3811.6,0.001]
[1753919673126,30.0,3811.6,3810.8,0.001]
[1753919673327,0.1312,3810.9,3810.8,0.001]
[1753919673525,0.9567,3810.9,3810.8,0.001]
[1753919673730,1.8497,3810.9,3810.8,0.001]
[1753919673928,2.3997,3810.9,3810.8,0.001]
[1753919674831,2.8910424,3810.9,3810.8,0.001]
[1753919675023,3.48014664,3810.9,3810.8,0.001]
[1753919676430,3.23447544,3810.9,3810.8,0.001]
[1753919677853,1.17470424,3810.9,3810.8,0.001]
[1753919678424,0.4544,3811.3,3810.8,0.001]
[1753919678595,0.5856,3811.3,3810.8,0.8982]
[1753919678731,0.5856,3811.3,3810.8,0.001]
[1753919678933,0.4544,3811.2,3810.8,0.001]
[1753919679351,0.5698,3811.3,3810.8,0.001]
[1753919679531,0.4544,3811.1,3810.8,0.001]
[1753919680065,0.4544,3811.0,3810.8,0.001]
[1753919680449,0.4544,3810.9,3810.8,0.001]
[1753919682670,0.893,3811.2,3810.8,0.001]
[1753919682966,0.4544,3811.2,3810.8,0.001]
[1753919683288,0.4544,3811.1,3810.8,0.001]
[1753919683713,0.4544,3811.0,3810.8,0.001]
[1753919684568,0.4544,3811.2,3810.8,0.001]
[1753919684992,0.1312,3811.3,3810.8,0.001]
[1753919685208,0.4544,3811.1,3810.8,0.001]
[1753919685580,0.4386,3811.0,3810.8,0.001]
[1753919685964,1.2576,3810.9,3810.8,0.001]
[1753919686294,1.8274,3810.9,3810.8,0.001]
[1753919691107,2.3774,3810.9,3810.8,0.001]
[1753919692421,6.3944,3810.9,3810.8,0.001]
[1753919692710,36.63973067,3810.9,3810.8,0.001]
[1753919692908,39.31519328,3810.9,3810.8,0.001]
[1753919694013,39.56051556,3810.9,3810.8,0.001]
[1753919695230,35.10491556,3810.9,3810.8,0.001]
[1753919695398,9.03911756,3810.9,3810.8,0.001]
[1753919695595,6.91485295,3810.9,3810.8,0.001]
[1753919696422,36.91485295,3810.9,3810.8,0.001]
[1753919696715,37.02004995,3810.9,3810.8,0.001]
[1753919698293,40.02004995,3810.9,3810.8,0.001]
[1753919699207,40.02023421,3810.9,3810.8,0.001]
[1753919699435,42.59049882,3810.9,3810.8,0.001]
[1753919700243,8.57349882,3810.9,3810.8,0.001]
[1753919700431,10.02023421,3810.9,3810.8,0.001]
[1753919701652,10.02953421,3810.9,3810.5,0.001]
[1753919701948,10.02953421,3810.9,3808.9,0.4449]
[1753919701949,0.55,3809.7,3808.9,0.4449]
[1753919702162,0.55,3809.7,3809.1,0.9142]
[1753919702163,4.02,3809.6,3809.1,0.9142]
[1753919702313,4.02,3809.6,3809.1,0.04]
[1753919702512,4.02,3809.6,3809.2,0.8742]
[1753919703640,0.4915118,3809.5,3809.2,0.4303]
[1753919703863,0.2457559,3809.4,3809.1,0.04]
[1753919704139,4.51136588,3809.3,3809.1,0.04]
[1753919704331,0.4768,3809.2,3809.1,0.04]
[1753919704854,0.96775371,3809.2,3809.1,0.04]
[1753919705019,3.30872908,3809.2,3809.1,0.04]
[1753919706112,3.06325743,3809.2,3809.1,0.04]
[1753919706315,2.81777537,3809.2,3809.1,0.04]
[1753919706510,4.96332389,3810.0,3809.1,0.04]
[1753919706511,4.02,3809.4,3809.1,0.4703]
[1753919706729,4.021,3809.4,3809.2,0.8742]
[1753919706929,4.021,3809.4,3809.3,0.8742]
[1753919707925,4.021,3809.4,3809.3,0.4303]
[1753919708951,0.7595,3810.1,3809.3,0.8742]
[1753919709246,7.09,3811.2,3809.6,0.7902]
[1753919709247,0.7533,3810.4,3809.6,0.7902]
[1753919709412,0.4768,3810.6,3809.6,0.7902]
[1753919709764,7.09,3811.2,3809.7,0.8742]
[1753919709765,4.5110216,3810.5,3809.7,0.8742]
[1753919709965,4.51102087,3810.4,3809.6,0.7902]
[1753919710120,0.4768,3810.7,3809.8,0.8742]
[1753919710430,0.24500571,3810.6,3809.9,0.4439]
[1753919710630,0.4768,3810.7,3809.9,0.8742]
[1753919710841,4.021,3810.7,3810.2,0.782]
[1753919711037,4.021,3810.7,3810.3,0.8742]
[1753919711848,0.1312,3810.6,3810.3,0.8742]
[1753919714694,0.1312,3810.6,3810.4,0.8742]
[1753919714895,4.019,3810.9,3810.4,0.8742]
[1753919715053,0.1312,3810.7,3810.4,0.8742]
[1753919715777,0.1312,3810.7,3810.4,0.4303]
[1753919716194,0.1312,3810.7,3810.2,1.6562]
[1753919716889,0.1312,3810.7,3810.3,0.8915]
[1753919717053,0.1312,3810.7,3810.4,4.96332389]
[1753919717268,0.1312,3810.9,3810.5,0.8915]
[1753919717488,0.1312,3810.9,3810.6,0.4476]
[1753919717690,0.002,3811.1,3810.6,0.8915]
[1753919717878,0.002,3811.1,3810.4,4.96332389]
[1753919717879,0.002,3811.1,3810.7,1.0227]
[1753919718296,0.002,3811.0,3810.7,1.0227]
[1753919718996,0.4719,3810.9,3810.2,0.782]
[1753919719187,0.55,3810.8,3809.7,4.4619]
[1753919719359,0.46451,3811.0,3810.3,4.96332389]
[1753919719683,0.46451,3811.0,3810.6,0.1312]
[1753919719684,0.002,3811.0,3810.6,0.1312]
[1753919720057,0.4739,3811.0,3810.6,0.1312]
[1753919720268,0.4719,3810.9,3810.0,1.214]
[1753919720469,0.9111,3810.9,3810.0,0.7664]
[1753919720682,0.1312,3810.6,3810.0,0.1312]
[1753919720867,0.4719,3810.5,3810.0,0.1312]
[1753919721176,0.4719,3810.4,3810.0,0.1312]
[1753919721369,0.31325,3810.6,3810.0,0.5751]
[1753919721596,0.1312,3810.6,3810.0,0.5751]
[1753919721799,0.1312,3810.6,3810.0,0.1312]
[1753919722101,0.4719,3810.5,3810.0,0.1312]
[1753919722260,0.4719,3810.4,3810.0,0.1312]
[1753919722592,0.4719,3810.5,3810.0,0.1312]
[1753919722799,0.4719,3810.5,3810.0,0.5788]
[1753919722999,0.1312,3810.6,3810.0,0.1312]
[1753919723185,0.1312,3810.6,3810.1,1.6838]
[1753919723387,0.4739,3811.0,3810.3,4.96332389]
[1753919723388,4.024,3811.0,3810.3,4.96332389]
[1753919723565,4.1552,3811.0,3810.5,0.1312]
[1753919723761,4.1552,3811.0,3810.5,1.0227]
[1753919724901,0.4719,3810.9,3810.5,0.1312]
[1753919725107,0.4719,3810.8,3810.5,0.1312]
[1753919727200,8.4392,3810.9,3810.5,0.1312]
[1753919727404,0.4719,3810.7,3810.5,0.1312]
[1753919728507,0.4719,3810.7,3810.2,0.4476]
[1753919728703,0.4719,3810.7,3810.4,0.1312]
[1753919733422,0.4719,3810.6,3810.4,0.1312]
[1753919733623,9.73154,3810.9,3810.4,0.1312]
[1753919733926,0.939484,3810.8,3810.4,0.1312]
[1753919734131,8.0,3810.9,3810.4,0.1312]
[1753919734273,0.4719,3810.8,3810.4,0.1312]
[1753919735100,8.0,3810.9,3810.5,4.96332389]
[1753919735421,8.0,3810.9,3810.6,0.7913]
[1753919735623,8.0,3810.9,3810.6,0.9225]
[1753919737773,8.0,3810.9,3810.8,4.96332389]
[1753919737974,8.0,3810.9,3810.8,5.98602389]
[1753919738174,8.0,3810.9,3810.8,5.09452389]
[1753919738987,8.0,3810.9,3810.8,8.6101448]
[1753919739267,8.0,3810.9,3810.8,9.3628448]
[1753919739567,8.002,3810.9,3810.8,9.3628448]
[1753919742578,8.002,3810.9,3810.8,12.3628448]
[1753919744902,8.002,3810.9,3810.8,9.73872389]
[1753919745573,8.002,3810.9,3810.8,9.29482389]
[1753919746073,8.9131,3810.9,3810.8,8.84722389]
[1753919746470,8.4739,3810.9,3810.8,8.84722389]
[1753919751370,8.002,3810.9,3810.8,8.84722389]
[1753919752690,8.4719,3810.9,3810.8,8.84722389]
[1753919754097,8.4719,3810.9,3810.8,11.4713448]
[1753919754665,8.002,3810.9,3810.8,11.4713448]
[1753919754994,8.9045,3810.9,3810.7,4.96332389]
[1753919755293,0.4699,3810.8,3810.7,4.96332389]
[1753919755469,0.4699,3810.8,3810.7,8.97932389]
[1753919755665,0.9025,3810.8,3810.7,8.97932389]
[1753919757894,8.002,3810.9,3810.7,8.97932389]
[1753919758479,0.4699,3810.8,3810.7,8.97932389]
[1753919759192,0.4699,3810.8,3810.7,11.60351367]
[1753919759396,0.002,3811.5,3811.0,5.6239832]
[1753919759555,0.002,3811.5,3811.2,5.6238455]
[1753919760081,0.002,3811.5,3811.2,6.5281455]
[1753919760489,0.002,3811.5,3811.2,3.5281455]
[1753919760863,0.002,3811.5,3811.2,6.5281455]
[1753919761285,0.002,3811.5,3811.2,7.2890455]
[1753919762718,0.04,3811.9,3811.5,3.7542]
[1753919762878,0.04,3811.9,3811.8,7.58675638]
[1753919763212,0.04,3811.9,3811.8,11.61275638]
[1753919765008,0.04,3811.9,3811.8,14.74395638]
[1753919765314,0.002,3812.4,3812.3,2.62308842]
[1753919765480,0.002,3812.4,3812.3,11.61441231]
[1753919766413,0.4719,3812.4,3812.3,11.61441231]
[1753919767293,0.9045,3812.4,3812.3,4.027]
[1753919769812,0.9045,3812.4,3812.3,6.65008842]
[1753919770037,0.4719,3812.4,3812.3,6.65008842]
[1753919770402,0.002,3812.4,3812.3,6.65008842]
[1753919772825,0.002,3812.4,3812.3,10.48008842]
[1753919775340,0.002,3812.4,3812.3,10.61128842]
[1753919776368,0.4719,3812.4,3812.3,9.78128842]
[1753919780304,0.4719,3812.4,3812.3,4.1582]
[1753919780509,0.9462,3812.4,3812.3,4.1582]
[1753919781849,0.9462,3812.4,3812.3,6.78128842]
[1753919782217,0.9462,3812.4,3812.3,4.1582]
[1753919782822,0.9462,3812.4,3812.3,2.75428842]
[1753919783943,0.9462,3812.4,3812.3,0.1312]
[1753919784139,0.9462,3812.4,3812.3,2.75428842]
[1753919784757,0.4719,3812.4,3812.3,2.75428842]
[1753919784977,0.002,3812.4,3812.3,2.75428842]
[1753919785261,0.002,3812.4,3812.3,6.77128842]
[1753919793380,0.4732,3812.4,3812.3,6.77128842]
[1753919794477,1.7044,3812.4,3812.3,4.1482]
[1753919794876,1.7044,3812.4,3812.3,11.73461231]
[1753919795076,0.9475,3812.4,3812.3,9.11152389]
[1753919795447,0.9475,3812.4,3812.3,11.73461231]
[1753919795676,0.9475,3812.4,3812.3,9.11152389]
[1753919796145,0.4732,3812.4,3812.3,11.73461231]
[1753919801082,0.002,3812.4,3812.3,12.51611231]
[1753919802482,0.002,3812.4,3812.3,11.73461231]
[1753919802687,0.002,3812.4,3812.3,9.11152389]
[1753919802981,0.9475,3812.4,3812.3,9.11152389]
[1753919803176,0.9475,3812.4,3812.3,11.73461231]
[1753919804084,0.4732,3812.4,3812.3,11.73461231]
[1753919806383,0.4732,3812.4,3812.3,4.1482]
[1753919806564,0.9475,3812.4,3812.3,4.1482]
[1753919811507,0.4732,3812.4,3812.3,6.77128842]
[1753919811797,0.002,3812.4,3812.3,6.77128842]
[1753919813189,0.002,3812.4,3812.3,7.65188842]
[1753919813904,0.5008,3812.9,3812.3,7.65188842]
[1753919813905,0.04,3812.9,3812.8,3.0]
[1753919814066,0.70682219,3813.8,3812.9,2.62267565]
[1753919814273,0.4608,3813.8,3813.7,5.09452389]
[1753919814466,0.4608,3813.8,3813.7,9.10852389]
[1753919816018,0.04,3813.9,3813.7,11.73059625]
[1753919816383,0.5008,3813.9,3813.7,9.10852389]
[1753919816583,0.04,3813.9,3813.8,4.014]
[1753919816816,0.49,3813.9,3813.8,4.014]
[1753919817179,0.9508,3813.9,3813.8,4.014]
[1753919818119,1.738,3813.9,3813.8,4.014]
[1753919821124,2.05612,3813.9,3813.3,0.1312]
[1753919821326,0.8027,3813.7,3812.6,4.96332389]
[1753919821538,0.1312,3813.3,3812.7,4.1452]
[1753919821825,0.1312,3813.1,3812.6,4.014]
[1753919822033,1.6871,3813.0,3812.5,4.014]
[1753919822198,0.1312,3812.9,3812.5,4.014]
[1753919822398,1.042,3812.9,3812.5,4.014]
[1753919822609,0.1312,3812.9,3812.5,4.014]
[1753919822817,0.9108,3812.8,3812.5,4.014]
[1753919822994,0.1312,3812.9,3812.5,4.014]
[1753919823195,0.9108,3812.7,3812.5,4.014]
[1753919823507,0.9108,3812.6,3812.5,4.014]
[1753919824430,0.55,3813.7,3812.5,4.014]
[1753919824431,1.2575,3813.8,3812.5,4.9208295]
[1753919824605,1.2575,3813.8,3813.5,4.96332389]
[1753919824805,0.7967,3813.8,3813.5,4.96332389]
[1753919825005,0.4608,3813.7,3813.5,4.96332389]
[1753919825232,0.45,3813.7,3813.5,4.96332389]
[1753919825436,0.4608,3813.6,3813.5,4.96332389]
[1753919826204,0.4608,3813.6,3813.3,4.1452]
[1753919826412,0.4608,3813.5,3813.3,4.1452]
[1753919827433,1.2575,3813.8,3813.4,4.96332389]
[1753919827618,0.9108,3813.7,3813.4,4.96332389]
[1753919827824,0.45,3813.7,3813.4,4.96332389]
[1753919827997,0.4608,3813.6,3813.4,4.96332389]
[1753919828198,0.45,3813.7,3813.4,4.96332389]
[1753919828399,0.4608,3813.6,3813.4,4.96332389]
[1753919828613,0.45,3813.7,3813.4,4.96332389]
[1753919828838,0.4608,3813.6,3813.4,4.96332389]
[1753919829137,0.4608,3813.5,3813.4,4.96332389]
[1753919829900,0.9108,3813.5,3812.5,2.6238854]
[1753919830134,1.8212,3813.4,3812.8,0.1312]
[1753919830307,0.9104,3813.4,3812.8,0.1312]
[1753919830508,0.9108,3813.3,3812.8,0.1312]
[1753919830911,0.9108,3813.2,3812.8,0.1312]
[1753919831515,0.9108,3813.2,3812.8,5.09452389]
[1753919831712,0.4608,3813.1,3812.8,5.09452389]
[1753919832212,0.4608,3813.0,3812.8,5.09452389]
[1753919832411,0.4608,3813.0,3812.9,4.014]
[1753919833515,3.55,3814.5,3814.0,3.0888]
[1753919833711,0.49064321,3814.4,3814.0,3.0888]
[1753919834029,0.1312,3814.1,3814.0,3.0888]
[1753919834505,0.62184321,3814.1,3814.0,3.0888]
[1753919834708,1.41017121,3814.1,3814.0,3.0888]
[1753919835036,1.95258833,3814.1,3814.0,3.0888]
[1753919835206,1.70726652,3814.1,3814.0,3.0888]
[1753919835407,1.46194512,3814.1,3814.0,3.0888]
[1753919835740,6.16806452,3814.1,3814.0,3.0888]
[1753919836244,5.92274512,3814.1,3814.0,3.0888]
[1753919836541,6.67424512,3814.1,3814.0,3.0888]
[1753919837303,7.16488822,3814.1,3814.0,3.0888]
[1753919839446,6.61488822,3814.1,3814.0,3.0888]
[1753919840326,3.16488822,3814.1,3814.0,3.0888]
[1753919840716,2.6224711,3814.1,3814.0,3.0888]
[1753919841349,2.1616711,3814.1,3814.0,3.0888]
[1753919841540,0.6218431,3814.1,3814.0,3.0888]
[1753919841933,0.24532155,3814.1,3814.0,9.01002389]
[1753919842958,0.1312,3814.4,3814.0,9.01002389]
[1753919843254,0.24543142,3814.3,3814.1,0.9579]
[1753919843558,0.24543142,3814.3,3814.2,0.9579]
[1753919843711,0.49085924,3814.3,3814.2,0.9579]
[1753919845154,0.49085924,3814.3,3814.0,3.0888]
[1753919845320,0.7703,3814.6,3814.2,1.0891]
[1753919845656,0.49090586,3814.5,3814.2,1.0891]
[1753919845858,0.49090586,3814.4,3814.2,1.0891]
[1753919846052,0.24545291,3814.3,3814.2,1.0891]
[1753919846369,0.24545291,3814.3,3814.2,0.5938]
[1753919846735,0.24545291,3814.4,3814.2,0.5938]
[1753919846958,0.4781,3814.5,3814.2,0.5938]
[1753919847258,0.7703,3814.6,3814.2,1.0891]
[1753919847453,0.24546643,3814.5,3814.2,1.0891]
[1753919848553,1.2484,3814.6,3814.2,1.0891]
[1753919848724,0.24543392,3814.5,3814.2,1.0891]
[1753919849429,1.2484,3814.6,3814.2,1.0891]
[1753919849847,0.002,3814.3,3814.2,1.0891]
[1753919853350,0.002,3814.3,3814.2,5.1011]
[1753919853643,0.002,3814.3,3814.2,8.50109957]
[1753919853842,0.002,3814.3,3814.2,8.47488176]
[1753919854428,0.002,3814.3,3814.2,5.8531]
[1753919854628,0.002,3814.3,3814.2,8.47488176]
[1753919855768,0.002,3814.3,3814.2,5.8531]
[1753919856294,0.002,3814.3,3814.2,8.47488176]
[1753919857058,0.002,3814.3,3814.2,5.8531]
[1753919857568,0.002,3814.3,3814.2,8.47488176]
[1753919858155,0.002,3814.3,3814.2,5.8531]
[1753919859471,0.002,3814.3,3814.2,8.47488176]
[1753919859836,0.002,3814.3,3814.2,5.8531]
[1753919861043,0.002,3814.3,3814.2,8.47488176]
[1753919862342,0.002,3814.3,3814.2,5.8531]
[1753919863672,0.002,3814.3,3814.2,8.47488176]
[1753919864265,0.002,3814.3,3814.2,5.8531]
[1753919865690,0.002,3814.3,3814.2,0.1312]
[1753919865885,0.4801,3814.3,3814.2,0.1312]
[1753919866089,0.4801,3814.3,3814.2,4.1422]
[1753919866402,0.002,3814.3,3814.2,4.1422]
[1753919868189,0.002,3814.3,3814.2,4.642]
[1753919868366,0.002,3814.3,3814.2,5.0865]
[1753919870416,0.002,3814.3,3814.2,0.631]
[1753919870624,0.002,3814.3,3814.2,4.1422]
[1753919870915,0.4772,3814.3,3814.2,4.1422]
[1753919871380,0.002,3814.3,3814.2,4.1422]
[1753919877322,0.002,3814.3,3814.2,7.70828176]
[1753919877919,0.002,3814.3,3814.2,5.0865]
[1753919879790,0.002,3814.3,3814.2,7.70828176]
[1753919879989,0.002,3814.3,3814.2,5.0865]
[1753919880188,0.002,3814.3,3814.2,4.5867]
[1753919880922,0.002,3814.3,3814.2,7.70828176]
[1753919881123,0.002,3814.3,3814.2,9.76398176]
[1753919881293,0.002,3814.3,3814.2,11.48948176]
[1753919882324,0.002,3814.3,3814.2,8.8677]
[1753919882669,0.002,3814.3,3814.2,11.48948176]
[1753919889153,0.002,3814.6,3814.5,2.62157556]
[1753919889354,0.002,3814.6,3814.5,14.59389945]
[1753919889561,0.002,3814.6,3814.5,15.39159945]
[1753919889715,0.002,3814.6,3814.5,16.46709945]
[1753919891726,0.002,3814.6,3814.5,8.89222389]
[1753919891927,0.002,3814.6,3814.5,12.10352389]
[1753919891928,0.4772,3814.6,3814.5,12.10352389]
[1753919892245,0.936,3814.6,3814.5,8.09452389]
[1753919892445,0.936,3814.6,3814.5,12.10352389]
[1753919893031,0.4772,3814.6,3814.5,12.10352389]
[1753919899062,0.4649,3814.6,3814.5,9.10352389]
[1753919902459,0.4649,3814.6,3814.5,5.09452389]
[1753919902659,0.4649,3814.6,3814.5,9.10252389]
[1753919906674,0.002,3814.6,3814.5,11.72409945]
[1753919906832,0.002,3814.6,3814.5,9.10252389]
[1753919908181,0.002,3814.6,3814.5,11.72409945]
[1753919908380,0.002,3814.6,3814.5,9.10252389]
[1753919909081,0.002,3814.6,3814.5,11.72409945]
[1753919911384,0.002,3814.6,3814.5,12.64779945]
[1753919911597,0.002,3814.6,3814.5,12.15709945]
[1753919911799,0.002,3814.6,3814.5,11.72409945]
[1753919914418,0.002,3814.6,3814.5,9.10252389]